fUSD/lending_fUSD_20240923
["ID","MTS","AMOUNT","RATE_DAILY","PERIOD"]
[338961486,1727091071600,-525.31,0.00012999,2]
[338961487,1727091071611,-500.0,0.00012999,2]
[338961488,1727091071622,-901.94,0.00012999,2]
[338961489,1727091071635,-500.0,0.00012999,2]
[338961490,1727091071647,-525.31,0.00012999,2]
[338961491,1727091071657,-500.0,0.00012999,2]
[338961492,1727091071667,-500.0,0.00012999,2]
[338961493,1727091071678,-901.94,0.00012999,2]
[338961494,1727091071689,-500.0,0.00012999,2]
[338961495,1727091071700,-901.94,0.00012999,2]
[338961496,1727091071711,-525.31,0.00012999,2]
[338961497,1727091071722,-500.0,0.00012999,2]
[338961498,1727091071733,-500.0,0.00012999,2]
[338961499,1727091071744,-901.94,0.00012999,2]
[338961500,1727091071755,-525.31,0.00012999,2]
[338961501,1727091071765,-500.0,0.00012999,2]
[338961502,1727091071776,-901.94,0.00012999,2]
[338961503,1727091071787,-525.31,0.00012999,2]
[338961504,1727091071799,-500.0,0.00012999,2]
[338961505,1727091071811,-500.0,0.00012999,2]
[338961506,1727091071823,-525.31,0.00012999,2]
[338961507,1727091071834,-500.0,0.00012999,2]
[338961508,1727091071845,-901.94,0.00012999,2]
[338961509,1727091071858,-500.0,0.00012999,2]
[338961510,1727091071870,-525.31,0.00012999,2]
[338961511,1727091071882,-500.0,0.00012999,2]
[338961512,1727091071894,-901.94,0.00012999,2]
[338961513,1727091071905,-500.0,0.00012999,2]
[338961514,1727091071917,-525.31,0.00012999,2]
[338961515,1727091071929,-530.09,0.00012999,2]
[338961516,1727091071940,-500.0,0.00012999,2]
[338961517,1727091071952,-901.96,0.00012999,2]
[338961518,1727091071964,-525.31,0.00012999,2]
[338961519,1727091071975,-500.0,0.00012999,2]
[338961520,1727091071987,-525.31,0.00012999,2]
[338961521,1727091071998,-313.3,0.00012999,2]
[338961522,1727091072009,-525.31,0.00012999,2]
[338961523,1727091072024,-525.31,0.00012999,2]
[338961524,1727091072035,-525.31,0.00012999,2]
[338961525,1727091072047,-525.31,0.00012999,2]
[338961526,1727091072058,-525.31,0.00012999,2]
[338961527,1727091072071,-241.56,0.00012999,2]
[338961528,1727091072082,-525.31,0.00012999,2]
[338961529,1727091072093,-525.31,0.00012999,2]
[338961530,1727091072105,-500.0,0.00012999,2]
[338961531,1727091072115,-525.31,0.00012999,2]
[338961532,1727091072127,-500.0,0.00012999,2]
[338961533,1727091072138,-357.962049,0.00012999,2]
[338961534,1727091072150,-500.0,0.00012999,2]
[338961535,1727091072169,-664.55,0.00012999,2]
[338961536,1727091072180,-664.55,0.00012999,2]
[338961537,1727091072192,-664.55,0.00012999,2]
[338961538,1727091072203,-500.0,0.00012999,2]
[338961539,1727091072214,-664.55,0.00012999,2]
[338961540,1727091072226,-500.0,0.00012999,2]
[338961541,1727091072237,-664.55,0.00012999,2]
[338961542,1727091072248,-664.55,0.00012999,2]
[338961543,1727091072259,-327.62,0.00012999,2]
[338961544,1727091072270,-664.55,0.00012999,2]
[338961545,1727091072282,-357.962049,0.00012999,2]
[338961546,1727091072293,-664.55,0.00012999,2]
[338961547,1727091072304,-664.55,0.00012999,2]
[338961548,1727091072315,-500.0,0.00012999,2]
[338961549,1727091072326,-664.55,0.00012999,2]
[338961550,1727091072337,-500.0,0.00012999,2]
[338961551,1727091072348,-664.55,0.00012999,2]
[338961552,1727091072359,-664.55,0.00012999,2]
[338961553,1727091072371,-664.55,0.00012999,2]
[338961554,1727091072382,-664.55,0.00012999,2]
[338961555,1727091072393,-500.0,0.00012999,2]
[338961556,1727091072406,-500.0,0.00012999,2]
[338961557,1727091072740,-664.55,0.00012999,2]
[338961558,1727091072763,-500.0,0.00012999,2]
[338961559,1727091072774,-664.55,0.00012999,2]
[338961560,1727091072784,-183.75,0.00012999,2]
[338961561,1727091072794,-664.55,0.00012999,2]
[338961562,1727091072805,-664.55,0.00012999,2]
[338961563,1727091072814,-500.0,0.00012999,2]
[338961564,1727091072824,-664.77,0.00012999,2]
[338961565,1727091072834,-500.0,0.00012999,2]
[338961566,1727091072844,-500.0,0.00012999,2]
[338961567,1727091072854,-500.0,0.00012999,2]
[338961568,1727091072864,-500.0,0.00012999,2]
[338961569,1727091072873,-500.0,0.00012999,2]
[338961570,1727091072883,-356.95,0.00012999,2]
[338961571,1727091072893,-500.0,0.00012999,2]
[338961572,1727091072907,-500.0,0.00012999,2]
[338961573,1727091072916,-500.0,0.00012999,2]
[338961574,1727091072926,-500.0,0.00012999,2]
[338961575,1727091072936,-500.0,0.00012999,2]
[338961576,1727091072945,-500.0,0.00012999,2]
[338961577,1727091072955,-500.0,0.00012999,2]
[338961578,1727091072965,-500.0,0.00012999,2]
[338961579,1727091072974,-500.0,0.00012999,2]
[338961580,1727091072983,-500.0,0.00012999,2]
[338961581,1727091072993,-500.0,0.00012999,2]
[338961582,1727091073003,-500.0,0.00012999,2]
[338961583,1727091073013,-19.22017365,0.00012999,2]
[338961584,1727091073279,-480.77982635,0.00012999,2]
[338961585,1727091073290,-500.0,0.00012999,2]
[338961586,1727091073300,-500.0,0.00012999,2]
[338961587,1727091073310,-461.87832035,0.00012999,2]
[338961588,1727091073320,-500.0,0.00012999,2]
[338961589,1727091073330,-138.6033072,0.00012999,2]
[338961590,1727091073342,-420.6966928,0.00012999,2]
[338961591,1727091073352,-500.0,0.00012999,2]
[338961592,1727091073362,-500.0,0.00012999,2]
[338961593,1727091073372,-500.0,0.00012999,2]
[338961594,1727091073382,-319.3033072,0.00012999,2]
[338961595,1727091073394,-180.6966928,0.00012999,2]
[338961596,1727091073408,-500.0,0.00012999,2]
[338961597,1727091073418,-500.0,0.00012999,2]
[338961598,1727091073427,-500.0,0.00012999,2]
[338961599,1727091073437,-500.0,0.00012999,2]
[338961600,1727091073447,-500.0,0.00012999,2]
[338961601,1727091073457,-500.0,0.00012999,2]
[338961602,1727091073468,-500.0,0.00012999,2]
[338961603,1727091073477,-500.0,0.00012999,2]
[338961604,1727091073487,-500.0,0.00012999,2]
[338961605,1727091073497,-331.8,0.00012999,2]
[338961606,1727091073507,-500.0,0.00012999,2]
[338961607,1727091073517,-500.0,0.00012999,2]
[338961608,1727091073527,-500.0,0.00012999,2]
[338961609,1727091073536,-500.0,0.00012999,2]
[338961610,1727091073546,-500.0,0.00012999,2]
[338961611,1727091073556,-500.0,0.00012999,2]
[338961612,1727091073565,-500.0,0.00012999,2]
[338961613,1727091073575,-311.1361387,0.00012999,2]
[338961614,1727091073597,-343.4538613,0.00012999,2]
[338961615,1727091073606,-432.60760617,0.00012999,2]
[338961616,1727091073637,-500.0,0.00012997,2]
[338961617,1727091073649,-500.0,0.00012998,2]
[338961618,1727091073659,-67.39239383,0.00012999,2]
[338961619,1727091073668,-368.35,0.00012999,2]
[338961620,1727091073677,-654.59,0.00012999,2]
[338961621,1727091073687,-500.0,0.00012999,2]
[338961622,1727091073697,-500.0,0.00012999,2]
[338961623,1727091073706,-654.59,0.00012999,2]
[338961624,1727091073716,-654.59,0.00012999,2]
[338961625,1727091073726,-440.16,0.00012999,2]
[338961626,1727091073735,-654.59,0.00012999,2]
[338961627,1727091073745,-654.59,0.00012999,2]
[338961628,1727091073755,-654.59,0.00012999,2]
[338961629,1727091073764,-500.0,0.00012999,2]
[338961630,1727091073774,-654.59,0.00012999,2]
[338961631,1727091073784,-500.0,0.00012999,2]
[338961632,1727091073794,-500.0,0.00012999,2]
[338961633,1727091073804,-654.59,0.00012999,2]
[338961634,1727091073814,-500.0,0.00012999,2]
[338961635,1727091073824,-180.32,0.00012999,2]
[338961636,1727091073834,-654.59,0.00012999,2]
[338961637,1727091073844,-500.0,0.00012999,2]
[338961638,1727091073854,-609.78497458,0.00012999,2]
[338961639,1727091073866,-44.80502542,0.00012999,2]
[338961640,1727091073876,-500.0,0.00012999,2]
[338961641,1727091073885,-654.59,0.00012999,2]
[338961642,1727091073897,-500.0,0.00012999,2]
[338961643,1727091073907,-500.0,0.00012999,2]
[338961644,1727091073918,-654.59,0.00012999,2]
[338961645,1727091073928,-500.0,0.00012999,2]
[338961646,1727091073938,-654.59,0.00012999,2]
[338961647,1727091073948,-500.0,0.00012999,2]
[338961648,1727091073958,-59.42497462,0.00012999,2]
[338961649,1727091073979,-500.0,0.00012998,2]
[338961650,1727091073989,-595.16502538,0.00012999,2]
[338961651,1727091073998,-55.67210406,0.00012999,2]
[338961652,1727091074010,-444.32789594,0.00012999,2]
[338961653,1727091074024,-654.59,0.00012999,2]
[338961654,1727091074033,-209.08210819,0.00012999,2]
[338961655,1727091074384,-705.324,0.00012685,2]
[338961656,1727091074394,-500.0,0.00012983,2]
[338961657,1727091074403,-668.57,0.00012984,2]
[338961658,1727091074412,-668.57,0.0001299,2]
[338961659,1727091074422,-668.57,0.00012997,2]
[338961660,1727091074431,-500.0,0.00012998,2]
[338961661,1727091074441,-500.0,0.00012998,2]
[338961662,1727091074450,-668.57,0.00012998,2]
[338961663,1727091074459,-445.50789181,0.00012999,2]
[338961664,1727091074469,-500.0,0.00012999,2]
[338961665,1727091074478,-654.74,0.00012999,2]
[338961666,1727091074487,-500.0,0.00012999,2]
[338961667,1727091074497,-500.0,0.00012999,2]
[338961668,1727091074506,-500.0,0.00012999,2]
[338961669,1727091074515,-500.0,0.00012999,2]
[338961670,1727091074524,-500.0,0.00012999,2]
[338961671,1727091074534,-324.4,0.00012999,2]
[338961672,1727091074543,-500.0,0.00012999,2]
[338961673,1727091074554,-500.0,0.00012999,2]
[338961674,1727091074564,-500.0,0.00012999,2]
[338961675,1727091074574,-1500.0,0.00012999,2]
[338961676,1727091074583,-500.0,0.00012999,2]
[338961677,1727091074593,-425.74810818,0.00012999,2]
[338961682,1727091595458,221.0845755,0.00011966,2]
[338961683,1727091715284,165.62,0.00011999,2]
[338961684,1727091733548,157.86,0.00010081,2]
[338961685,1727091743047,1000.0,0.00011999,2]
[338961686,1727091784289,159.35,0.00010959,2]
[338961687,1727091802445,500.0,9.35e-05,2]
[338961688,1727091806041,500.0,9.35e-05,2]
[338961689,1727091847453,251.68582658,0.00011939,2]
[338961690,1727091904546,1500.0,0.00011897,2]
[338961691,1727091942809,250.0,0.00011892,2]
[338961692,1727091944500,500.0,0.00011896,2]
[338961693,1727091944818,317.66,0.00011896,2]
[338961696,1727091999894,-200.0,0.00012066,2]
[338961697,1727091999916,-215.4,0.00012066,2]
[338961698,1727091999937,-155.39,0.00012077,2]
[338961699,1727091999959,-157.86,0.00012345,2]
[338961700,1727091999978,-150.0,0.00012411,2]
[338961701,1727091999999,-161.057473,0.00012438,2]
[338961702,1727092000020,-171.931792,0.00012438,2]
[338961703,1727092000041,-156.264635,0.00012438,2]
[338961705,1727092032098,494.77243153,0.00012066,2]
[338961706,1727092034239,137.32366847,0.00011915,2]
[338961707,1727092034265,112.67633153,0.00011915,2]
[338961720,1727092193246,182.26,0.00011895,2]
[338961721,1727092223506,23900.0,0.00011895,2]
[338961748,1727092232293,-179.36,0.000125,2]
[338961751,1727092232302,-189.98,0.00012516,2]
[338961754,1727092232312,-421.86233158,0.00012694,2]
[338961757,1727092232321,-27.62211359,0.00012749,2]
[338961758,1727092232332,-128.64252141,0.00012749,2]
[338961759,1727092232341,-150.0,0.00012768,2]
[338961760,1727092232350,-163.67044034,0.00012795,2]
[338961761,1727092232360,-425.68170913,0.00012795,2]
[338961762,1727092232616,-74.30829087,0.00012795,2]
[338961763,1727092232626,-891.1572,0.00012795,2]
[338961764,1727092232635,-150.0,0.00012806,2]
[338961765,1727092232645,-299.99,0.00012806,2]
[338961766,1727092232654,-499.99,0.00012806,2]
[338961767,1727092232663,-163.67044031,0.0001283,2]
[338961768,1727092232672,-150.99,0.0001283,2]
[338961769,1727092232682,-150.0,0.00012864,2]
[338961770,1727092232691,-300.0,0.00012864,2]
[338961771,1727092232702,-436.85816986,0.00012864,2]
[338961772,1727092232713,-563.13183014,0.00012864,2]
[338961773,1727092232723,-171.88816986,0.00012864,2]
[338961775,1727092232734,-1366.00042613,0.00012864,2]
[338961777,1727092232754,-235.31140401,0.00012864,2]
[338961778,1727092232763,-1336.48859599,0.00012864,2]
[338961779,1727092232774,-165.07140401,0.00012864,2]
[338961780,1727092232783,-163.67044031,0.00012865,2]
[338961781,1727092232792,-5.08452711,0.00012865,2]
[338961782,1727092232803,-145.90547289,0.00012865,2]
[338961783,1727092232812,-9319.84452711,0.00012865,2]
[338961784,1727092232839,-3018.11810362,0.00012865,2]
[338961785,1727092232850,-500.0,0.00012865,2]
[338961786,1727092232862,-16892.33994674,0.00012865,2]
[338961787,1727092232876,-22.18742253,0.00012865,2]
[338961788,1727092232885,-640.43438086,0.00012865,2]
[338961789,1727092232896,-679.71,0.00012865,2]
[338961790,1727092232907,-2092.50561914,0.00012865,2]
[338961791,1727092232916,-923.21,0.00012865,2]
[338961792,1727092232925,-1936.54303228,0.0001287,2]
[338961793,1727092232934,-816.17935072,0.00012885,2]
[338961794,1727092232943,-355.56119727,0.00012888,2]
[338961795,1727092232954,-316.04374005,0.00012889,2]
[338961796,1727092232963,-355.56119727,0.0001289,2]
[338961797,1727092232972,-150.0,0.00012891,2]
[338961798,1727092232981,-355.56119727,0.00012891,2]
[338961799,1727092232991,-355.56119727,0.00012893,2]
[338961800,1727092233002,-316.04374005,0.00012895,2]
[338961801,1727092233011,-355.56119727,0.00012895,2]
[338961802,1727092233020,-500.0,0.00012895,2]
[338961803,1727092233030,-338.56401983,0.00012895,2]
[338961804,1727092233059,-161.43598017,0.00012895,2]
[338961805,1727092233069,-500.0,0.00012895,2]
[338961806,1727092233079,-500.0,0.00012895,2]
[338961807,1727092233089,-500.0,0.00012895,2]
[338961808,1727092233100,-500.0,0.00012895,2]
[338961809,1727092233110,-500.0,0.00012895,2]
[338961810,1727092233120,-500.0,0.00012895,2]
[338961811,1727092233129,-500.0,0.00012895,2]
[338961812,1727092233139,-500.0,0.00012895,2]
[338961813,1727092233148,-500.0,0.00012895,2]
[338961814,1727092233158,-500.0,0.00012895,2]
[338961815,1727092233168,-500.0,0.00012895,2]
[338961816,1727092233177,-500.0,0.00012895,2]
[338961817,1727092233187,-500.0,0.00012895,2]
[338961818,1727092233196,-500.0,0.00012895,2]
[338961819,1727092233207,-500.0,0.00012895,2]
[338961820,1727092233217,-500.0,0.00012895,2]
[338961821,1727092233227,-585.55,0.00012895,2]
[338961822,1727092233237,-500.0,0.00012895,2]
[338961823,1727092233247,-545.61,0.00012895,2]
[338961824,1727092233256,-500.0,0.00012895,2]
[338961825,1727092233266,-500.0,0.00012895,2]
[338961826,1727092233276,-500.0,0.00012895,2]
[338961827,1727092233286,-500.0,0.00012895,2]
[338961828,1727092233296,-500.0,0.00012895,2]
[338961829,1727092233306,-500.0,0.00012895,2]
[338961830,1727092233316,-500.0,0.00012895,2]
[338961831,1727092233325,-500.0,0.00012895,2]
[338961832,1727092233335,-500.0,0.00012895,2]
[338961833,1727092233344,-500.0,0.00012895,2]
[338961834,1727092233355,-500.0,0.00012895,2]
[338961835,1727092233365,-500.0,0.00012895,2]
[338961836,1727092233374,-500.0,0.00012895,2]
[338961837,1727092233384,-500.0,0.00012895,2]
[338961838,1727092233394,-500.0,0.00012895,2]
[338961839,1727092233403,-500.0,0.00012895,2]
[338961840,1727092233412,-500.0,0.00012895,2]
[338961841,1727092233422,-500.0,0.00012895,2]
[338961842,1727092233432,-500.0,0.00012895,2]
[338961843,1727092233441,-500.0,0.00012895,2]
[338961844,1727092233451,-53.73608654,0.00012895,2]
[338961845,1727092233467,-446.26391346,0.00012895,2]
[338961846,1727092233477,-265.33608654,0.00012895,2]
[338961847,1727092233488,-234.66391346,0.00012895,2]
[338961848,1727092233498,-427.88443271,0.00012895,2]
[338961849,1727092233520,-72.11556729,0.00012895,2]
[338961850,1727092233530,-500.0,0.00012895,2]
[338961851,1727092233540,-500.0,0.00012895,2]
[338961852,1727092233550,-500.0,0.00012895,2]
[338961853,1727092233559,-500.0,0.00012895,2]
[338961854,1727092233569,-500.0,0.00012895,2]
[338961855,1727092233579,-500.0,0.00012895,2]
[338961856,1727092233588,-500.0,0.00012895,2]
[338961857,1727092233597,-500.0,0.00012895,2]
[338961858,1727092233607,-318.10025157,0.00012895,2]
[338961859,1727092233618,-181.89974843,0.00012895,2]
[338961860,1727092233628,-500.0,0.00012895,2]
[338961861,1727092233637,-500.0,0.00012895,2]
[338961862,1727092233648,-500.0,0.00012895,2]
[338961863,1727092233657,-500.0,0.00012895,2]
[338961864,1727092233667,-500.0,0.00012895,2]
[338961865,1727092233676,-500.0,0.00012895,2]
[338961866,1727092233686,-500.0,0.00012895,2]
[338961867,1727092233695,-500.0,0.00012895,2]
[338961868,1727092233706,-500.0,0.00012895,2]
[338961869,1727092233715,-500.0,0.00012895,2]
[338961870,1727092233724,-500.0,0.00012895,2]
[338961871,1727092233734,-500.0,0.00012895,2]
[338961872,1727092233744,-500.0,0.00012895,2]
[338961873,1727092233753,-500.0,0.00012895,2]
[338961874,1727092233763,-500.0,0.00012895,2]
[338961875,1727092233772,-500.0,0.00012895,2]
[338961876,1727092233781,-439.20622013,0.00012895,2]
[338961877,1727092233790,-500.27951922,0.00012895,2]
[338961878,1727092233800,-500.0,0.00012895,2]
[338961879,1727092233810,-500.0,0.00012895,2]
[338961880,1727092233820,-500.0,0.00012895,2]
[338961881,1727092233830,-500.0,0.00012895,2]
[338961882,1727092233839,-500.0,0.00012895,2]
[338961883,1727092233848,-500.0,0.00012895,2]
[338961884,1727092233857,-500.0,0.00012895,2]
[338961885,1727092233867,-500.0,0.00012895,2]
[338961886,1727092233876,-500.0,0.00012895,2]
[338961887,1727092233885,-500.0,0.00012895,2]
[338961888,1727092233894,-500.0,0.00012895,2]
[338961889,1727092233903,-500.0,0.00012895,2]
[338961890,1727092233913,-500.0,0.00012895,2]
[338961891,1727092233922,-500.0,0.00012895,2]
[338961892,1727092233932,-500.0,0.00012895,2]
[338961893,1727092233941,-500.0,0.00012895,2]
[338961894,1727092233952,-500.0,0.00012895,2]
[338961895,1727092233961,-500.0,0.00012895,2]
[338961896,1727092233971,-500.0,0.00012895,2]
[338961897,1727092233980,-501.57882655,0.00012895,2]
[338961898,1727092233989,-500.0,0.00012895,2]
[338961899,1727092233999,-500.0,0.00012895,2]
[338961900,1727092234008,-500.0,0.00012895,2]
[338961901,1727092234018,-500.0,0.00012895,2]
[338961902,1727092234027,-500.0,0.00012895,2]
[338961903,1727092234036,-500.0,0.00012895,2]
[338961904,1727092234045,-500.0,0.00012895,2]
[338961905,1727092234054,-500.0,0.00012895,2]
[338961906,1727092234063,-500.0,0.00012895,2]
[338961907,1727092234073,-500.0,0.00012895,2]
[338961908,1727092234082,-500.0,0.00012895,2]
[338961909,1727092234091,-500.0,0.00012895,2]
[338961910,1727092234101,-500.0,0.00012895,2]
[338961911,1727092234110,-500.0,0.00012895,2]
[338961912,1727092234120,-500.0,0.00012895,2]
[338961913,1727092234129,-500.0,0.00012895,2]
[338961914,1727092234138,-500.0,0.00012895,2]
[338961915,1727092234148,-500.0,0.00012895,2]
[338961916,1727092234158,-500.0,0.00012895,2]
[338961917,1727092234167,-500.0,0.00012895,2]
[338961918,1727092234177,-500.0,0.00012895,2]
[338961919,1727092234186,-500.0,0.00012895,2]
[338961920,1727092234196,-500.0,0.00012895,2]
[338961921,1727092234207,-500.0,0.00012895,2]
[338961922,1727092234216,-500.0,0.00012895,2]
[338961923,1727092234225,-500.0,0.00012895,2]
[338961924,1727092234234,-500.0,0.00012895,2]
[338961925,1727092234244,-500.0,0.00012895,2]
[338961926,1727092234253,-500.0,0.00012895,2]
[338961927,1727092234262,-500.0,0.00012895,2]
[338961928,1727092234271,-500.0,0.00012895,2]
[338961929,1727092234280,-500.0,0.00012895,2]
[338961930,1727092234289,-500.0,0.00012895,2]
[338961931,1727092234299,-498.0,0.00012895,2]
[338961932,1727092234309,-500.0,0.00012895,2]
[338961933,1727092234319,-500.0,0.00012895,2]
[338961934,1727092234329,-500.0,0.00012895,2]
[338961935,1727092234339,-500.0,0.00012895,2]
[338961936,1727092234349,-500.0,0.00012895,2]
[338961937,1727092234358,-500.0,0.00012895,2]
[338961938,1727092234367,-500.0,0.00012895,2]
[338961939,1727092234376,-500.0,0.00012895,2]
[338961940,1727092234385,-500.0,0.00012895,2]
[338961941,1727092234395,-500.0,0.00012895,2]
[338961942,1727092234404,-501.14824167,0.00012895,2]
[338961943,1727092234413,-500.0,0.00012895,2]
[338961944,1727092234422,-500.0,0.00012895,2]
[338961945,1727092234432,-500.0,0.00012895,2]
[338961946,1727092234441,-500.0,0.00012895,2]
[338961947,1727092234451,-500.0,0.00012895,2]
[338961948,1727092234466,-500.0,0.00012895,2]
[338961949,1727092234476,-500.0,0.00012895,2]
[338961950,1727092234486,-500.0,0.00012895,2]
[338961951,1727092234495,-500.0,0.00012895,2]
[338961952,1727092234504,-500.0,0.00012895,2]
[338961953,1727092234515,-500.0,0.00012895,2]
[338961954,1727092234524,-500.0,0.00012895,2]
[338961955,1727092234533,-500.0,0.00012895,2]
[338961956,1727092234544,-500.0,0.00012895,2]
[338961957,1727092234554,-500.0,0.00012895,2]
[338961958,1727092234563,-500.0,0.00012895,2]
[338961959,1727092234572,-500.0,0.00012895,2]
[338961960,1727092234582,-500.0,0.00012895,2]
[338961961,1727092234592,-500.0,0.00012895,2]
[338961962,1727092234602,-501.20667978,0.00012895,2]
[338961963,1727092234612,-500.0,0.00012895,2]
[338961964,1727092234623,-500.0,0.00012895,2]
[338961965,1727092234633,-500.0,0.00012895,2]
[338961966,1727092234644,-414.35528613,0.00012895,2]
[338961967,1727092234653,-500.0,0.00012895,2]
[338961968,1727092234663,-500.0,0.00012895,2]
[338961969,1727092234673,-500.0,0.00012895,2]
[338961970,1727092234683,-500.0,0.00012895,2]
[338961971,1727092234693,-500.0,0.00012895,2]
[338961972,1727092234703,-500.0,0.00012895,2]
[338961973,1727092234712,-500.0,0.00012895,2]
[338961974,1727092234722,-500.0,0.00012895,2]
[338961975,1727092234731,-500.0,0.00012895,2]
[338961976,1727092234740,-500.0,0.00012895,2]
[338961977,1727092234750,-500.0,0.00012895,2]
[338961978,1727092234759,-500.0,0.00012895,2]
[338961979,1727092234769,-500.0,0.00012895,2]
[338961980,1727092234778,-432.83018464,0.00012895,2]
[338961981,1727092234788,-500.0,0.00012895,2]
[338961982,1727092234797,-500.0,0.00012895,2]
[338961983,1727092234807,-500.0,0.00012895,2]
[338961984,1727092234816,-270.87014824,0.00012895,2]
[338961985,1727092234830,-229.12985176,0.00012895,2]
[338961986,1727092234840,-500.0,0.00012895,2]
[338961987,1727092234850,-500.0,0.00012895,2]
[338961988,1727092234861,-502.75038623,0.00012895,2]
[338961989,1727092234870,-287.14929043,0.00012895,2]
[338961990,1727092234883,-212.85070957,0.00012895,2]
[338961991,1727092234892,-500.0,0.00012895,2]
[338961992,1727092234903,-500.0,0.00012895,2]
[338961993,1727092234913,-500.0,0.00012895,2]
[338961994,1727092234924,-500.0,0.00012895,2]
[338961995,1727092234934,-500.0,0.00012895,2]
[338961996,1727092234944,-500.0,0.00012895,2]
[338961997,1727092234954,-200.0,0.00012895,2]
[338961998,1727092234964,-500.0,0.00012895,2]
[338961999,1727092234974,-500.0,0.00012895,2]
[338962000,1727092234983,-500.0,0.00012895,2]
[338962001,1727092234993,-53.79743728,0.00012895,2]
[338962003,1727092238434,-446.20256272,0.00012895,2]
[338962004,1727092238443,-354.47660533,0.00012895,2]
[338962005,1727092238454,-145.52339467,0.00012895,2]
[338962006,1727092238470,-415.58674268,0.00012895,2]
[338962007,1727092238481,-84.41325732,0.00012895,2]
[338962008,1727092238489,-500.0,0.00012895,2]
[338962009,1727092238499,-210.45476268,0.00012895,2]
[338962010,1727092238512,-289.54523732,0.00012895,2]
[338962011,1727092238520,-500.0,0.00012895,2]
[338962012,1727092238530,-500.0,0.00012895,2]
[338962013,1727092238540,-500.0,0.00012895,2]
[338962014,1727092238550,-500.0,0.00012895,2]
[338962015,1727092238559,-500.0,0.00012895,2]
[338962016,1727092238568,-500.0,0.00012895,2]
[338962017,1727092238577,-500.0,0.00012895,2]
[338962018,1727092238587,-500.0,0.00012895,2]
[338962019,1727092238596,-500.0,0.00012895,2]
[338962020,1727092238606,-500.0,0.00012895,2]
[338962021,1727092238615,-500.0,0.00012895,2]
[338962022,1727092238624,-500.0,0.00012895,2]
[338962023,1727092238634,-500.0,0.00012895,2]
[338962024,1727092238643,-489.86818817,0.00012895,2]
[338962025,1727092238654,-10.13181183,0.00012895,2]
[338962026,1727092238664,-500.0,0.00012895,2]
[338962027,1727092238673,-500.0,0.00012895,2]
[338962028,1727092238682,-500.0,0.00012895,2]
[338962029,1727092238692,-479.56,0.00012895,2]
[338962030,1727092238701,-500.0,0.00012895,2]
[338962031,1727092238712,-500.0,0.00012895,2]
[338962032,1727092238721,-500.0,0.00012895,2]
[338962033,1727092238731,-500.0,0.00012895,2]
[338962034,1727092238740,-157.20979108,0.00012895,2]
[338962035,1727092238750,-500.0,0.00012895,2]
[338962036,1727092238760,-500.0,0.00012895,2]
[338962037,1727092238769,-500.0,0.00012895,2]
[338962038,1727092238778,-500.0,0.00012895,2]
[338962039,1727092238788,-337.12941216,0.00012895,2]